[Event "Early-Titled-Tuesday-Blitz-May-14-2024"]
[Site "Chess.com"]
[Date "2024.05.14"]
[Round "9"]
[White "JanMur7"]
[Black "CD3m"]
[Result "0-1"]
[WhiteElo "2263"]
[BlackElo "2360"]
[TimeControl "180+1"]
[EndTime "9:48:02 PDT"]
[Termination "CD3m won by checkmate"]

1. c4 {[%clk 0:03:00.9]} 1... c6 {[%clk 0:02:59.8]} 2. Nc3 {[%clk 0:03:00.5]}
2... d5 {[%clk 0:03:00.2]} 3. d4 {[%clk 0:03:00.7]} 3... e5 {[%clk 0:03:00.2]}
4. cxd5 {[%clk 0:02:59.1]} 4... cxd5 {[%clk 0:03:00.5]} 5. dxe5 {[%clk 0:02:35]}
5... d4 {[%clk 0:03:01.4]} 6. Ne4 {[%clk 0:02:32.8]} 6... Qa5+ {[%clk 0:03:02]}
7. Nd2 {[%clk 0:02:30.5]} 7... Nc6 {[%clk 0:02:46.2]} 8. Nf3 {[%clk 0:02:30]}
8... Nge7 {[%clk 0:02:45.5]} 9. g3 {[%clk 0:02:28.2]} 9... Ng6 {[%clk
0:02:45.6]} 10. Bg2 {[%clk 0:02:27.9]} 10... Ngxe5 {[%clk 0:02:45.4]} 11. O-O
{[%clk 0:02:25.8]} 11... Nxf3+ {[%clk 0:02:40.6]} 12. Nxf3 {[%clk 0:02:25.6]}
12... Bc5 {[%clk 0:02:40.9]} 13. a3 {[%clk 0:02:24.7]} 13... O-O {[%clk
0:02:33.9]} 14. Rb1 {[%clk 0:02:14.3]} 14... Bb6 {[%clk 0:02:32.9]} 15. b4
{[%clk 0:02:13.8]} 15... Qh5 {[%clk 0:02:31.9]} 16. Bb2 {[%clk 0:02:12.6]} 16...
Rd8 {[%clk 0:02:16.3]} 17. Ne1 {[%clk 0:01:57.4]} 17... Bg4 {[%clk 0:02:09.9]}
18. f3 {[%clk 0:01:45.8]} 18... d3+ {[%clk 0:01:59]} 19. Kh1 {[%clk 0:01:44.8]}
19... dxe2 {[%clk 0:01:59.3]} 20. Qxe2 {[%clk 0:01:43.8]} 20... Bf5 {[%clk
0:01:59.6]} 21. Rc1 {[%clk 0:01:39.4]} 21... Qh6 {[%clk 0:01:50.2]} 22. g4
{[%clk 0:01:28.7]} 22... Rd2 {[%clk 0:01:38.8]} 23. Qb5 {[%clk 0:01:17.9]} 23...
Rxb2 {[%clk 0:01:35.8]} 24. gxf5 {[%clk 0:01:01.8]} 24... Qxc1 {[%clk
0:01:31.2]} 25. Nd3 {[%clk 0:01:02]} 25... Qc3 {[%clk 0:01:23.9]} 26. Nxb2
{[%clk 0:01:02.9]} 26... Qxb2 {[%clk 0:01:24.1]} 27. f4 {[%clk 0:00:58.3]} 27...
Qf6 {[%clk 0:01:07.1]} 28. a4 {[%clk 0:00:52.4]} 28... Nd4 {[%clk 0:01:05.8]}
29. Qe5 {[%clk 0:00:46.1]} 29... Nxf5 {[%clk 0:00:59.5]} 30. Bxb7 {[%clk
0:00:42.6]} 30... Rd8 {[%clk 0:00:55.4]} 31. a5 {[%clk 0:00:32.1]} 31... Bd4
{[%clk 0:00:45.2]} 32. Qxf6 {[%clk 0:00:24.7]} 32... Bxf6 {[%clk 0:00:44]} 33.
b5 {[%clk 0:00:22.6]} 33... Bc3 {[%clk 0:00:41.1]} 34. b6 {[%clk 0:00:21.3]}
34... Bd4 {[%clk 0:00:34.4]} 35. Rb1 {[%clk 0:00:08.7]} 35... Rb8 {[%clk
0:00:25.8]} 36. a6 {[%clk 0:00:06.2]} 36... g6 {[%clk 0:00:15.1]} 37. bxa7
{[%clk 0:00:05.4]} 37... Bxa7 {[%clk 0:00:16]} 38. Rd1 {[%clk 0:00:03.6]} 38...
Kf8 {[%clk 0:00:13]} 39. Rd7 {[%clk 0:00:03.8]} 39... Be3 {[%clk 0:00:06.1]} 40.
Bd5 {[%clk 0:00:03]} 40... Nh6 {[%clk 0:00:04.9]} 41. a7 {[%clk 0:00:03.3]}
41... Bxa7 {[%clk 0:00:05]} 42. Rxa7 {[%clk 0:00:03.8]} 42... Rb2 {[%clk
0:00:03.7]} 43. f5 {[%clk 0:00:02.7]} 43... gxf5 {[%clk 0:00:02.1]} 44. h4
{[%clk 0:00:03.2]} 44... Kg7 {[%clk 0:00:02.3]} 45. Kg1 {[%clk 0:00:02.4]} 45...
Rb4 {[%clk 0:00:02.8]} 46. h5 {[%clk 0:00:01.5]} 46... Rg4+ {[%clk 0:00:03.4]}
47. Kf2 {[%clk 0:00:01.7]} 47... Rh4 {[%clk 0:00:03.7]} 48. Kf3 {[%clk 0:00:02]}
48... Rxh5 {[%clk 0:00:03.9]} 49. Kf4 {[%clk 0:00:02.5]} 49... Rh4+ {[%clk
0:00:03.9]} 50. Kg5 {[%clk 0:00:02.5]} 50... Rg4+ {[%clk 0:00:04.5]} 51. Kh5
{[%clk 0:00:03.4]} 51... Rg3 {[%clk 0:00:02.2]} 52. Kh4 {[%clk 0:00:02.6]} 52...
Rd3 {[%clk 0:00:01.3]} 53. Bc4 {[%clk 0:00:02.3]} 53... Rd4+ {[%clk 0:00:01.8]}
54. Kh5 {[%clk 0:00:01.8]} 54... Rxc4 {[%clk 0:00:02.7]} 55. Rxf7+ {[%clk
0:00:01.7]} 55... Kxf7 {[%clk 0:00:02.4]} 56. Kg5 {[%clk 0:00:02.1]} 56... Ke6
{[%clk 0:00:02.5]} 57. Kh5 {[%clk 0:00:02.7]} 57... Rg4 {[%clk 0:00:02.5]} 58.
Kxh6 {[%clk 0:00:02.7]} 58... Kf6 {[%clk 0:00:02.7]} 59. Kh5 {[%clk 0:00:03.6]}
59... Rg3 {[%clk 0:00:02.5]} 60. Kh6 {[%clk 0:00:04.5]} 60... f4 {[%clk
0:00:03]} 61. Kh5 {[%clk 0:00:05.4]} 61... f3 {[%clk 0:00:03.3]} 62. Kh6 {[%clk
0:00:06.3]} 62... Rg2 {[%clk 0:00:03.8]} 63. Kh5 {[%clk 0:00:07.2]} 63... f2
{[%clk 0:00:04.5]} 64. Kh4 {[%clk 0:00:07.6]} 64... f1=Q {[%clk 0:00:05.1]} 65.
Kh3 {[%clk 0:00:07.9]} 65... Qh1# {[%clk 0:00:05.9]} 0-1

[Event "Early-Titled-Tuesday-Blitz-May-14-2024"]
[Site "Chess.com"]
[Date "2024.05.14"]
[Round "9"]
[White "ChessSwole"]
[Black "ReinisUz"]
[Result "1-0"]
[WhiteElo "2594"]
[BlackElo "2421"]
[TimeControl "180+1"]
[EndTime "9:48:03 PDT"]
[Termination "ChessSwole won by checkmate"]

1. d4 {[%clk 0:03:00.9]} 1... d5 {[%clk 0:02:59.9]} 2. Nf3 {[%clk 0:03:01]} 2...
c6 {[%clk 0:02:59.9]} 3. Bf4 {[%clk 0:02:57.8]} 3... Nf6 {[%clk 0:02:59.9]} 4.
e3 {[%clk 0:02:58.2]} 4... e6 {[%clk 0:02:59.5]} 5. c4 {[%clk 0:02:57.3]} 5...
Bd6 {[%clk 0:02:55.3]} 6. Ne5 {[%clk 0:02:53.3]} 6... O-O {[%clk 0:02:51.5]} 7.
Nc3 {[%clk 0:02:52.9]} 7... Qc7 {[%clk 0:02:51]} 8. c5 {[%clk 0:02:50.6]} 8...
Bxe5 {[%clk 0:02:46.1]} 9. Bxe5 {[%clk 0:02:51.5]} 9... Qa5 {[%clk 0:02:44.8]}
10. Bxf6 {[%clk 0:02:45.1]} 10... gxf6 {[%clk 0:02:44.6]} 11. Bd3 {[%clk
0:02:43.5]} 11... e5 {[%clk 0:02:39.1]} 12. dxe5 {[%clk 0:02:35.9]} 12... fxe5
{[%clk 0:02:38.9]} 13. Qh5 {[%clk 0:02:36.2]} 13... e4 {[%clk 0:02:37.5]} 14.
Qg5+ {[%clk 0:02:35.5]} 14... Kh8 {[%clk 0:02:36.9]} 15. Bc2 {[%clk 0:01:55.1]}
15... Nd7 {[%clk 0:02:31]} 16. O-O {[%clk 0:01:46.7]} 16... Qxc5 {[%clk
0:02:30.8]} 17. Rad1 {[%clk 0:01:40.4]} 17... f6 {[%clk 0:02:28.6]} 18. Qh6
{[%clk 0:01:38.2]} 18... Qe7 {[%clk 0:02:28.1]} 19. f3 {[%clk 0:01:32.1]} 19...
exf3 {[%clk 0:02:24.4]} 20. Rxf3 {[%clk 0:01:30.6]} 20... Qg7 {[%clk 0:02:19.9]}
21. Qh4 {[%clk 0:01:27.3]} 21... Ne5 {[%clk 0:02:09.7]} 22. Rg3 {[%clk
0:01:27.4]} 22... Qe7 {[%clk 0:02:04.7]} 23. Rf1 {[%clk 0:01:17.3]} 23... Bd7
{[%clk 0:02:03.4]} 24. Ne2 {[%clk 0:00:56.2]} 24... Rf7 {[%clk 0:01:43.2]} 25.
Nf4 {[%clk 0:00:51.2]} 25... Rg8 {[%clk 0:01:41.8]} 26. Rxg8+ {[%clk 0:00:47]}
26... Kxg8 {[%clk 0:01:38.1]} 27. Nh5 {[%clk 0:00:47.8]} 27... f5 {[%clk
0:01:31.1]} 28. Qg3+ {[%clk 0:00:47.8]} 28... Kh8 {[%clk 0:01:25.4]} 29. h3
{[%clk 0:00:37.1]} 29... Rf8 {[%clk 0:01:08]} 30. Kh1 {[%clk 0:00:34.3]} 30...
b6 {[%clk 0:01:01.2]} 31. Qf4 {[%clk 0:00:21.1]} 31... c5 {[%clk 0:00:54.8]} 32.
Qh6 {[%clk 0:00:19.5]} 32... d4 {[%clk 0:00:47.6]} 33. exd4 {[%clk 0:00:19.2]}
33... cxd4 {[%clk 0:00:48.5]} 34. Qf4 {[%clk 0:00:19.3]} 34... d3 {[%clk
0:00:44.7]} 35. Bb3 {[%clk 0:00:19.8]} 35... Ng6 {[%clk 0:00:40.8]} 36. Qd4+
{[%clk 0:00:19.5]} 36... Qe5 {[%clk 0:00:40]} 37. Qxd7 {[%clk 0:00:19.8]} 37...
Qxb2 {[%clk 0:00:28.6]} 38. Qxd3 {[%clk 0:00:18.4]} 38... Nh4 {[%clk 0:00:26.4]}
39. Qg3 {[%clk 0:00:18.7]} 39... Ng6 {[%clk 0:00:22.5]} 40. Nf4 {[%clk
0:00:17.6]} 40... Ne5 {[%clk 0:00:16.9]} 41. Nh5 {[%clk 0:00:13.1]} 41... Ng6
{[%clk 0:00:16.7]} 42. Re1 {[%clk 0:00:11.9]} 42... a5 {[%clk 0:00:14.3]} 43.
Nf4 {[%clk 0:00:11.4]} 43... Rf6 {[%clk 0:00:08.3]} 44. Re8+ {[%clk 0:00:09.8]}
44... Kg7 {[%clk 0:00:08.6]} 45. Nh5+ {[%clk 0:00:07.4]} 45... Kh6 {[%clk
0:00:06]} 46. Nxf6 {[%clk 0:00:08]} 46... Qxf6 {[%clk 0:00:06.2]} 47. Re6 {[%clk
0:00:07]} 47... Qa1+ {[%clk 0:00:05.9]} 48. Re1 {[%clk 0:00:06.8]} 48... Qb2
{[%clk 0:00:05.5]} 49. Bf7 {[%clk 0:00:06.3]} 49... f4 {[%clk 0:00:05.6]} 50.
Qg4 {[%clk 0:00:06.3]} 50... Qb4 {[%clk 0:00:05.3]} 51. Rf1 {[%clk 0:00:05.6]}
51... Qb5 {[%clk 0:00:04.6]} 52. Rg1 {[%clk 0:00:04.9]} 52... Ne5 {[%clk
0:00:02.7]} 53. Qxf4+ {[%clk 0:00:04.4]} 53... Kg7 {[%clk 0:00:02.5]} 54. Be6
{[%clk 0:00:05]} 54... Ng6 {[%clk 0:00:02.6]} 55. Qc7+ {[%clk 0:00:04.4]} 55...
Kh6 {[%clk 0:00:02.8]} 56. Bc4 {[%clk 0:00:04.5]} 56... Qb4 {[%clk 0:00:02.7]}
57. Qc6 {[%clk 0:00:04.3]} 57... a4 {[%clk 0:00:02.8]} 58. Bd3 {[%clk
0:00:04.5]} 58... Qd2 {[%clk 0:00:03.1]} 59. Bxg6 {[%clk 0:00:04.8]} 59... hxg6
{[%clk 0:00:03.9]} 60. Qe4 {[%clk 0:00:05.5]} 60... a3 {[%clk 0:00:04.3]} 61.
Qh4+ {[%clk 0:00:05.6]} 61... Kg7 {[%clk 0:00:04.4]} 62. Re1 {[%clk 0:00:06]}
62... Qxa2 {[%clk 0:00:04]} 63. Re7+ {[%clk 0:00:06.4]} 63... Kf8 {[%clk
0:00:04.5]} 64. Qf6+ {[%clk 0:00:07]} 64... Kg8 {[%clk 0:00:04.7]} 65. Qg7#
{[%clk 0:00:07.6]} 1-0

[Event "Early-Titled-Tuesday-Blitz-May-14-2024"]
[Site "Chess.com"]
[Date "2024.05.14"]
[Round "9"]
[White "DACF2905"]
[Black "stepanosinovsky"]
[Result "0-1"]
[WhiteElo "2415"]
[BlackElo "2330"]
[TimeControl "180+1"]
[EndTime "9:48:04 PDT"]
[Termination "stepanosinovsky won by resignation"]

1. e4 {[%clk 0:03:00.9]} 1... e5 {[%clk 0:02:52.9]} 2. Nf3 {[%clk 0:02:53.4]}
2... Nc6 {[%clk 0:02:53.3]} 3. Bc4 {[%clk 0:02:52.4]} 3... Nf6 {[%clk
0:02:53.5]} 4. d3 {[%clk 0:02:51.8]} 4... Be7 {[%clk 0:02:52.6]} 5. c3 {[%clk
0:02:50.4]} 5... O-O {[%clk 0:02:49.8]} 6. O-O {[%clk 0:02:50.4]} 6... d5 {[%clk
0:02:45.9]} 7. exd5 {[%clk 0:02:49.3]} 7... Nxd5 {[%clk 0:02:46.8]} 8. Re1
{[%clk 0:02:49]} 8... Bg4 {[%clk 0:02:46.1]} 9. h3 {[%clk 0:02:47.5]} 9... Bh5
{[%clk 0:02:46.1]} 10. g4 {[%clk 0:02:47.3]} 10... Bg6 {[%clk 0:02:46.1]} 11.
Nxe5 {[%clk 0:02:47.5]} 11... Nxe5 {[%clk 0:02:45.3]} 12. Rxe5 {[%clk
0:02:47.7]} 12... Nb6 {[%clk 0:02:33.8]} 13. Re1 {[%clk 0:02:38.9]} 13... Kh8
{[%clk 0:02:26.4]} 14. Bf4 {[%clk 0:02:35.1]} 14... f5 {[%clk 0:02:22.8]} 15.
Nd2 {[%clk 0:02:19]} 15... fxg4 {[%clk 0:02:06.4]} 16. Qxg4 {[%clk 0:02:15.3]}
16... Rxf4 {[%clk 0:01:56.4]} 17. Qxf4 {[%clk 0:02:14.1]} 17... Bg5 {[%clk
0:01:57]} 18. Qd4 {[%clk 0:02:01.3]} 18... Qxd4 {[%clk 0:01:45.9]} 19. cxd4
{[%clk 0:02:01.2]} 19... Bxd2 {[%clk 0:01:46.5]} 20. Re7 {[%clk 0:02:01.2]}
20... Bf4 {[%clk 0:01:41]} 21. Rae1 {[%clk 0:01:53.6]} 21... Rd8 {[%clk
0:01:35.3]} 22. Bf7 {[%clk 0:01:49.3]} 22... Bxf7 {[%clk 0:01:19.2]} 23. Rxf7
{[%clk 0:01:46.9]} 23... Bd6 {[%clk 0:01:17.1]} 24. Re4 {[%clk 0:01:37.2]} 24...
Nd5 {[%clk 0:01:11.2]} 25. Rf3 {[%clk 0:01:32.6]} 25... h6 {[%clk 0:01:01.5]}
26. a3 {[%clk 0:01:31.3]} 26... Nf6 {[%clk 0:00:59.7]} 27. Re2 {[%clk
0:01:26.8]} 27... Kh7 {[%clk 0:00:56.1]} 28. Kg2 {[%clk 0:01:26.4]} 28... Kg6
{[%clk 0:00:54.6]} 29. b4 {[%clk 0:01:20.5]} 29... Nd5 {[%clk 0:00:52.7]} 30.
Rc2 {[%clk 0:01:18.1]} 30... Nf4+ {[%clk 0:00:49.8]} 31. Kf1 {[%clk 0:01:12.6]}
31... Ne6 {[%clk 0:00:49]} 32. Rc4 {[%clk 0:00:56.8]} 32... b5 {[%clk
0:00:47.7]} 33. Rc3 {[%clk 0:00:55.3]} 33... Nxd4 {[%clk 0:00:47.5]} 34. Re3
{[%clk 0:00:54.5]} 34... Nf5 {[%clk 0:00:45.9]} 35. Re1 {[%clk 0:00:47.7]} 35...
Kf6 {[%clk 0:00:44.9]} 36. Rc6 {[%clk 0:00:46.7]} 36... Ne7 {[%clk 0:00:38.2]}
37. Ra6 {[%clk 0:00:45.3]} 37... Nd5 {[%clk 0:00:31.3]} 38. Rxa7 {[%clk
0:00:39.1]} 38... Nf4 {[%clk 0:00:31.3]} 39. Rb7 {[%clk 0:00:38.3]} 39... Ra8
{[%clk 0:00:29.2]} 40. Ra1 {[%clk 0:00:19.6]} 40... Nxd3 {[%clk 0:00:18.6]} 41.
Rxb5 {[%clk 0:00:19.2]} 41... Nxb4 {[%clk 0:00:18.4]} 42. a4 {[%clk 0:00:18.7]}
42... Nc2 {[%clk 0:00:17]} 43. Rc1 {[%clk 0:00:17.7]} 43... Nd4 {[%clk
0:00:15.5]} 44. Rd5 {[%clk 0:00:17.6]} 44... Rxa4 {[%clk 0:00:14.5]} 45. Rd1
{[%clk 0:00:17.3]} 45... Ne6 {[%clk 0:00:14.1]} 46. R5d3 {[%clk 0:00:15.4]}
46... Ra2 {[%clk 0:00:14]} 47. Re1 {[%clk 0:00:14.4]} 47... Nf4 {[%clk
0:00:14.1]} 48. Rf3 {[%clk 0:00:14]} 48... g5 {[%clk 0:00:13.6]} 49. Rb1 {[%clk
0:00:12.6]} 49... h5 {[%clk 0:00:13.6]} 50. Rb5 {[%clk 0:00:11.3]} 50... h4
{[%clk 0:00:13.4]} 51. Rb1 {[%clk 0:00:09.6]} 51... Rc2 {[%clk 0:00:13.5]} 52.
Kg1 {[%clk 0:00:09.8]} 52... Rd2 {[%clk 0:00:13.3]} 53. Rb5 {[%clk 0:00:09.5]}
53... Kg6 {[%clk 0:00:13]} 54. Rb1 {[%clk 0:00:09.3]} 54... Rc2 {[%clk
0:00:12.4]} 55. Rf1 {[%clk 0:00:09.1]} 55... Ne2+ {[%clk 0:00:12.1]} 56. Kg2
{[%clk 0:00:09.1]} 56... Nf4+ {[%clk 0:00:11.9]} 57. Kg1 {[%clk 0:00:09.6]}
57... Rd2 {[%clk 0:00:11.5]} 58. Kh1 {[%clk 0:00:09.8]} 58... c5 {[%clk
0:00:11.8]} 59. Kg1 {[%clk 0:00:10]} 59... c4 {[%clk 0:00:11.7]} 60. Kh1 {[%clk
0:00:10.6]} 60... Be5 {[%clk 0:00:11.2]} 61. Re1 {[%clk 0:00:09.6]} 61... Bf6
{[%clk 0:00:11]} 62. Rc1 {[%clk 0:00:07.4]} 62... c3 {[%clk 0:00:11.1]} 63. Kg1
{[%clk 0:00:06]} 63... Ne2+ {[%clk 0:00:10.7]} 64. Kh2 {[%clk 0:00:05.7]} 64...
Nxc1 {[%clk 0:00:11.6]} 65. Kg2 {[%clk 0:00:06]} 65... Ne2 {[%clk 0:00:11.6]}
0-1

[Event "Early-Titled-Tuesday-Blitz-May-14-2024"]
[Site "Chess.com"]
[Date "2024.05.14"]
[Round "9"]
[White "becemix"]
[Black "Flaccidmoves"]
[Result "1-0"]
[WhiteElo "2596"]
[BlackElo "2433"]
[TimeControl "180+1"]
[EndTime "9:48:05 PDT"]
[Termination "becemix won by resignation"]

1. e4 {[%clk 0:02:57.9]} 1... d5 {[%clk 0:02:59.1]} 2. exd5 {[%clk 0:02:57.6]}
2... Qxd5 {[%clk 0:03:00]} 3. Nc3 {[%clk 0:02:57.8]} 3... Qd6 {[%clk 0:03:00.1]}
4. Nf3 {[%clk 0:02:57.9]} 4... c6 {[%clk 0:02:59.8]} 5. g3 {[%clk 0:02:57.8]}
5... Nf6 {[%clk 0:02:59.5]} 6. Bg2 {[%clk 0:02:57.9]} 6... Bg4 {[%clk
0:02:56.7]} 7. h3 {[%clk 0:02:56.3]} 7... Bxf3 {[%clk 0:02:55.7]} 8. Qxf3 {[%clk
0:02:54.4]} 8... e6 {[%clk 0:02:55]} 9. O-O {[%clk 0:02:53.9]} 9... Be7 {[%clk
0:02:54.9]} 10. d3 {[%clk 0:02:45.1]} 10... O-O {[%clk 0:02:53.7]} 11. Re1
{[%clk 0:02:45.2]} 11... Nbd7 {[%clk 0:02:51.7]} 12. a3 {[%clk 0:02:43.7]} 12...
Qc7 {[%clk 0:02:26.1]} 13. h4 {[%clk 0:02:36.1]} 13... Rfe8 {[%clk 0:02:22.7]}
14. h5 {[%clk 0:02:34.8]} 14... e5 {[%clk 0:02:10.7]} 15. h6 {[%clk 0:02:33.5]}
15... g6 {[%clk 0:02:11.2]} 16. Bg5 {[%clk 0:02:29.5]} 16... Nh5 {[%clk
0:01:48.6]} 17. Bxe7 {[%clk 0:02:15.4]} 17... Rxe7 {[%clk 0:01:49.5]} 18. Bh3
{[%clk 0:02:15.3]} 18... f5 {[%clk 0:01:36.6]} 19. Rad1 {[%clk 0:01:59.8]} 19...
Rf8 {[%clk 0:01:29.7]} 20. b4 {[%clk 0:01:29.2]} 20... e4 {[%clk 0:01:07.5]} 21.
Qg2 {[%clk 0:01:05.2]} 21... Ne5 {[%clk 0:01:04.3]} 22. dxe4 {[%clk 0:01:03.2]}
22... fxe4 {[%clk 0:01:04.2]} 23. Rxe4 {[%clk 0:00:57.3]} 23... Nf3+ {[%clk
0:01:03.6]} 24. Kh1 {[%clk 0:00:57.6]} 24... Ref7 {[%clk 0:00:51.9]} 25. Be6
{[%clk 0:00:54.3]} 25... Ng5 {[%clk 0:00:47.4]} 26. Rd7 {[%clk 0:00:50.7]} 26...
Nxe6 {[%clk 0:00:29]} 27. Rxc7 {[%clk 0:00:47.5]} 27... Nxc7 {[%clk 0:00:29.9]}
28. Re2 {[%clk 0:00:42.4]} 28... Nf6 {[%clk 0:00:29.7]} 29. Kg1 {[%clk
0:00:32.9]} 29... Ng4 {[%clk 0:00:28.2]} 30. Ne4 {[%clk 0:00:33.2]} 30... Nxh6
{[%clk 0:00:25.2]} 31. Ng5 {[%clk 0:00:33.2]} 31... Rd7 {[%clk 0:00:19.2]} 32.
Qe4 {[%clk 0:00:31.5]} 32... Nf5 {[%clk 0:00:13.9]} 33. Qc4+ {[%clk 0:00:24.5]}
33... Nd5 {[%clk 0:00:12.1]} 34. Ne6 {[%clk 0:00:22]} 34... Re8 {[%clk
0:00:11.4]} 35. Nf4 {[%clk 0:00:22]} 35... Rxe2 {[%clk 0:00:10.9]} 36. Nxe2
{[%clk 0:00:22]} 36... Kg7 {[%clk 0:00:10.2]} 37. Nf4 {[%clk 0:00:21.1]} 37...
Nxf4 {[%clk 0:00:10]} 38. Qxf4 {[%clk 0:00:22]} 38... Kf7 {[%clk 0:00:08.4]} 39.
c4 {[%clk 0:00:21.5]} 39... h5 {[%clk 0:00:08.1]} 40. Qe5 {[%clk 0:00:20.3]}
40... Re7 {[%clk 0:00:08]} 41. Qh8 {[%clk 0:00:19.6]} 41... Rd7 {[%clk
0:00:06.2]} 42. Kg2 {[%clk 0:00:18]} 42... Re7 {[%clk 0:00:05.5]} 43. b5 {[%clk
0:00:18.1]} 43... cxb5 {[%clk 0:00:05.4]} 44. cxb5 {[%clk 0:00:18.5]} 44... Rd7
{[%clk 0:00:06]} 45. a4 {[%clk 0:00:13.9]} 45... b6 {[%clk 0:00:06.3]} 46. Qc3
{[%clk 0:00:13.3]} 46... Re7 {[%clk 0:00:06.7]} 47. a5 {[%clk 0:00:13.6]} 47...
bxa5 {[%clk 0:00:06.5]} 48. Qxa5 {[%clk 0:00:14.5]} 48... Kg7 {[%clk 0:00:06.7]}
49. Qc3+ {[%clk 0:00:14.1]} 49... Kf7 {[%clk 0:00:06.5]} 50. Kh3 {[%clk
0:00:14.5]} 50... Rd7 {[%clk 0:00:06.6]} 51. f3 {[%clk 0:00:14.7]} 51... Re7
{[%clk 0:00:06.7]} 52. Qc4+ {[%clk 0:00:14.2]} 52... Kg7 {[%clk 0:00:06.8]} 53.
Qd5 {[%clk 0:00:14.4]} 53... Rf7 {[%clk 0:00:06.6]} 54. g4 {[%clk 0:00:13.5]}
54... hxg4+ {[%clk 0:00:06.8]} 55. fxg4 {[%clk 0:00:14.4]} 55... Ne7 {[%clk
0:00:07.2]} 56. Qe5+ {[%clk 0:00:14.4]} 56... Kf8 {[%clk 0:00:06.7]} 57. Kh4
{[%clk 0:00:14.3]} 57... Ng8 {[%clk 0:00:06.9]} 58. Kg5 {[%clk 0:00:13.9]} 58...
Ne7 {[%clk 0:00:06.2]} 59. Qb8+ {[%clk 0:00:13.2]} 59... Kg7 {[%clk 0:00:06]}
60. Qxa7 {[%clk 0:00:13.5]} 60... Ng8 {[%clk 0:00:06.5]} 61. Qd4+ {[%clk
0:00:13.8]} 61... Nf6 {[%clk 0:00:06.9]} 62. b6 {[%clk 0:00:14]} 62... Kg8
{[%clk 0:00:05.5]} 63. Qxf6 {[%clk 0:00:14]} 63... Rxf6 {[%clk 0:00:05.7]} 64.
Kxf6 {[%clk 0:00:14.3]} 1-0

[Event "Early-Titled-Tuesday-Blitz-May-14-2024"]
[Site "Chess.com"]
[Date "2024.05.14"]
[Round "9"]
[White "suyu28"]
[Black "FormerProdigy"]
[Result "0-1"]
[WhiteElo "2840"]
[BlackElo "2997"]
[TimeControl "180+1"]
[EndTime "9:48:10 PDT"]
[Termination "FormerProdigy won by checkmate"]

1. d4 {[%clk 0:02:21.5]} 1... Nf6 {[%clk 0:02:58.8]} 2. c4 {[%clk 0:02:19.4]}
2... e6 {[%clk 0:02:59.3]} 3. Nf3 {[%clk 0:02:19.3]} 3... b6 {[%clk 0:02:58.5]}
4. g3 {[%clk 0:02:19]} 4... Ba6 {[%clk 0:02:58.9]} 5. b3 {[%clk 0:02:18.6]} 5...
Bb4+ {[%clk 0:02:59.1]} 6. Bd2 {[%clk 0:02:18]} 6... Be7 {[%clk 0:02:59.7]} 7.
Nc3 {[%clk 0:02:16.7]} 7... d5 {[%clk 0:02:59.9]} 8. cxd5 {[%clk 0:02:16.7]}
8... exd5 {[%clk 0:03:00.8]} 9. Bg2 {[%clk 0:02:17.1]} 9... O-O {[%clk
0:03:01.3]} 10. O-O {[%clk 0:02:17.7]} 10... Re8 {[%clk 0:03:00.9]} 11. a3
{[%clk 0:02:17.8]} 11... c5 {[%clk 0:02:22.7]} 12. Bf4 {[%clk 0:02:02.7]} 12...
Nc6 {[%clk 0:02:19]} 13. Re1 {[%clk 0:01:14.9]} 13... Ne4 {[%clk 0:02:12.4]} 14.
Nxe4 {[%clk 0:00:53.5]} 14... dxe4 {[%clk 0:02:13.3]} 15. Ne5 {[%clk 0:00:54.1]}
15... Nxd4 {[%clk 0:02:13.8]} 16. Bxe4 {[%clk 0:00:52.5]} 16... Nxe2+ {[%clk
0:02:13.8]} 17. Rxe2 {[%clk 0:00:52.2]} 17... Qxd1+ {[%clk 0:02:14.3]} 18. Rxd1
{[%clk 0:00:52.6]} 18... Bxe2 {[%clk 0:02:15.2]} 19. Re1 {[%clk 0:00:53]} 19...
Ba6 {[%clk 0:01:56.5]} 20. Bxa8 {[%clk 0:00:52.5]} 20... Rxa8 {[%clk 0:01:56.9]}
21. Nc6 {[%clk 0:00:50.1]} 21... Bf8 {[%clk 0:01:50.7]} 22. Nb8 {[%clk 0:00:25]}
22... Bb7 {[%clk 0:01:42.6]} 23. Re8 {[%clk 0:00:24.3]} 23... f6 {[%clk
0:01:30.8]} 24. Bd6 {[%clk 0:00:20.8]} 24... Kf7 {[%clk 0:01:31.4]} 25. Rxf8+
{[%clk 0:00:20.7]} 25... Ke6 {[%clk 0:01:32.3]} 26. Bc7 {[%clk 0:00:17.4]} 26...
Bd5 {[%clk 0:01:27.5]} 27. b4 {[%clk 0:00:15.8]} 27... cxb4 {[%clk 0:01:22.1]}
28. axb4 {[%clk 0:00:15.6]} 28... a5 {[%clk 0:01:23]} 29. bxa5 {[%clk
0:00:15.1]} 29... bxa5 {[%clk 0:01:11.7]} 30. Rd8 {[%clk 0:00:15.2]} 30... Be4
{[%clk 0:00:57]} 31. Rd6+ {[%clk 0:00:12.3]} 31... Kf7 {[%clk 0:00:55.1]} 32.
Rd7+ {[%clk 0:00:11.7]} 32... Kg6 {[%clk 0:00:53.7]} 33. Rd4 {[%clk 0:00:11.7]}
33... f5 {[%clk 0:00:48.8]} 34. Ra4 {[%clk 0:00:08.8]} 34... Ra7 {[%clk
0:00:48]} 35. Bxa5 {[%clk 0:00:08.6]} 35... Rb7 {[%clk 0:00:48.4]} 36. Rb4
{[%clk 0:00:07.1]} 36... Ra7 {[%clk 0:00:38.7]} 37. Rb5 {[%clk 0:00:07.4]} 37...
Kh5 {[%clk 0:00:24.7]} 38. h3 {[%clk 0:00:07.4]} 38... g5 {[%clk 0:00:23.2]} 39.
Kh2 {[%clk 0:00:07]} 39... Re7 {[%clk 0:00:19.4]} 40. Bb4 {[%clk 0:00:05.9]}
40... Rc7 {[%clk 0:00:18.4]} 41. Rc5 {[%clk 0:00:03.6]} 41... Rb7 {[%clk
0:00:17.9]} 42. Bd2 {[%clk 0:00:03.6]} 42... Rxb8 {[%clk 0:00:17.1]} 43. g4+
{[%clk 0:00:04.2]} 43... Kh4 {[%clk 0:00:15]} 44. f3 {[%clk 0:00:03.9]} 44...
Rb2 {[%clk 0:00:13.1]} 45. fxe4 {[%clk 0:00:03]} 45... Rxd2+ {[%clk 0:00:13.6]}
46. Kg1 {[%clk 0:00:03.6]} 46... fxe4 {[%clk 0:00:10.9]} 47. Re5 {[%clk
0:00:03.8]} 47... Kxh3 {[%clk 0:00:04.6]} 48. Kf1 {[%clk 0:00:04.4]} 48... Kxg4
{[%clk 0:00:04.2]} 49. Rxe4+ {[%clk 0:00:04.6]} 49... Kf3 {[%clk 0:00:04.9]} 50.
Re1 {[%clk 0:00:03.3]} 50... h5 {[%clk 0:00:05.4]} 51. Kg1 {[%clk 0:00:03.4]}
51... h4 {[%clk 0:00:05.7]} 52. Rf1+ {[%clk 0:00:03.6]} 52... Kg3 {[%clk
0:00:06.4]} 53. Ra1 {[%clk 0:00:03.3]} 53... Rd3 {[%clk 0:00:06.5]} 54. Kh1
{[%clk 0:00:03.3]} 54... g4 {[%clk 0:00:07.4]} 55. Rb1 {[%clk 0:00:03.7]} 55...
h3 {[%clk 0:00:07.9]} 56. Rc1 {[%clk 0:00:04.3]} 56... Kh4 {[%clk 0:00:07.7]}
57. Rb1 {[%clk 0:00:04.9]} 57... Rd4 {[%clk 0:00:07.7]} 58. Ra1 {[%clk
0:00:04.6]} 58... g3 {[%clk 0:00:08.1]} 59. Rb1 {[%clk 0:00:05.2]} 59... h2
{[%clk 0:00:07.5]} 60. Kg2 {[%clk 0:00:02.9]} 60... Rd2+ {[%clk 0:00:07.7]} 61.
Kh1 {[%clk 0:00:02.8]} 61... Kh3 {[%clk 0:00:08.3]} 62. Rg1 {[%clk 0:00:02]}
62... Rd1 {[%clk 0:00:08.8]} 63. Rxd1 {[%clk 0:00:02.1]} 63... g2# {[%clk
0:00:09.7]} 0-1